[Event "Titled Tuesday Blitz October 5 2021"]
[White "Von Buelow, Georg"]
[Black "Karttunen, Mika"]
[WhiteFideId "4620658"]
[BlackFideId "502081"]
[WhiteElo "2239"]
[BlackElo "2343"]
[Result "0-1"]
[Round "10"]
[TimeControl "180+1"]
[Date "2021.10.05"]
[WhiteClock "0:01:53"]
[BlackClock "0:00:34"]

1. e4 {[%clk 0:03:00]}  e5 {[%clk 0:02:58]} 2. Nf3 {[%clk 0:02:59]}  Nc6 {[%clk 0:02:58]} 3. Nc3 {[%clk 0:02:59]}  Nf6 {[%clk 0:02:57]} 4. d4 {[%clk 0:02:59]}  exd4 {[%clk 0:02:57]} 5. Nxd4 {[%clk 0:02:59]}  Bb4 {[%clk 0:02:54]} 6. Nxc6 {[%clk 0:02:58]}  bxc6 {[%clk 0:02:54]} 7. Bd3 {[%clk 0:02:58]}  d5 {[%clk 0:02:54]} 8. exd5 {[%clk 0:02:58]}  cxd5 {[%clk 0:02:54]} 9. O-O {[%clk 0:02:58]}  O-O {[%clk 0:02:53]} 10. Bg5 {[%clk 0:02:57]}  c6 {[%clk 0:02:51]} 11. Qf3 {[%clk 0:02:57]}  h6 {[%clk 0:02:51]} 12. Bf4 {[%clk 0:02:56]}  Bd6 {[%clk 0:02:48]} 13. h3 {[%clk 0:02:55]}  Rb8 {[%clk 0:02:44]} 14. b3 {[%clk 0:02:55]}  Rb4 {[%clk 0:02:41]} 15. Bd2 {[%clk 0:02:51]}  Rh4 {[%clk 0:02:36]} 16. Rfe1 {[%clk 0:02:49]}  Bc7 {[%clk 0:02:14]} 17. Ne2 {[%clk 0:02:47]}  Ne4 {[%clk 0:00:37]} 18. Bf4 {[%clk 0:01:54]}  Bxf4 {[%clk 0:00:34]} 19. Nxf4 {[%clk 0:01:53]}  Qf6 {[%clk 0:00:34]} 0-1


[Site "https://www.chess.com"]

[Event "Titled Tuesday Blitz October 5 2021"]
[White "Vusatiuk, Vladimir"]
[Black "Janaszak, Dawid"]
[WhiteFideId "14118610"]
[BlackFideId "1119206"]
[WhiteElo "2167"]
[BlackElo "2215"]
[Result "1-0"]
[Round "10"]
[TimeControl "180+1"]
[Date "2021.10.05"]
[WhiteClock "0:00:06"]
[BlackClock "0:00:29"]

1. d4 {[%clk 0:03:00]}  Nf6 {[%clk 0:02:52]} 2. c4 {[%clk 0:03:01]}  c5 {[%clk 0:02:52]} 3. d5 {[%clk 0:03:01]}  b5 {[%clk 0:02:52]} 4. cxb5 {[%clk 0:03:01]}  a6 {[%clk 0:02:52]} 5. bxa6 {[%clk 0:03:02]}  Bxa6 {[%clk 0:02:52]} 6. Nc3 {[%clk 0:03:03]}  d6 {[%clk 0:02:52]} 7. e4 {[%clk 0:03:04]}  Bxf1 {[%clk 0:02:53]} 8. Kxf1 {[%clk 0:03:04]}  g6 {[%clk 0:02:54]} 9. g3 {[%clk 0:03:05]}  Bg7 {[%clk 0:02:53]} 10. Kg2 {[%clk 0:03:06]}  O-O {[%clk 0:02:53]} 11. Nf3 {[%clk 0:03:07]}  Qb6 {[%clk 0:02:50]} 12. a4 {[%clk 0:03:05]}  Na6 {[%clk 0:02:50]} 13. Qe1 {[%clk 0:03:05]}  Nc7 {[%clk 0:02:50]} 14. Qe2 {[%clk 0:02:39]}  Qa6 {[%clk 0:02:47]} 15. Qxa6 {[%clk 0:02:35]}  Rxa6 {[%clk 0:02:48]} 16. Nd2 {[%clk 0:02:26]}  Rb8 {[%clk 0:02:40]} 17. f3 {[%clk 0:02:23]}  Nd7 {[%clk 0:02:33]} 18. Ra3 {[%clk 0:02:11]}  Rb4 {[%clk 0:02:19]} 19. Ndb1 {[%clk 0:01:57]}  Nb6 {[%clk 0:02:10]} 20. b3 {[%clk 0:01:53]}  c4 {[%clk 0:02:06]} 21. a5 {[%clk 0:01:34]}  Nd7 {[%clk 0:01:57]} 22. bxc4 {[%clk 0:01:34]}  Rxc4 {[%clk 0:01:52]} 23. Be3 {[%clk 0:01:26]}  f5 {[%clk 0:01:41]} 24. Rc1 {[%clk 0:01:15]}  Kf7 {[%clk 0:01:37]} 25. Nd2 {[%clk 0:01:14]}  Rxc3 {[%clk 0:01:20]} 26. Rcxc3 {[%clk 0:01:10]}  Bxc3 {[%clk 0:01:21]} 27. Rxc3 {[%clk 0:01:11]}  Nb5 {[%clk 0:01:20]} 28. Rb3 {[%clk 0:00:32]}  Rxa5 {[%clk 0:01:20]} 29. Nc4 {[%clk 0:00:32]}  Ra2+ {[%clk 0:01:20]} 30. Kh3 {[%clk 0:00:33]}  Rc2 {[%clk 0:01:04]} 31. Na5 {[%clk 0:00:13]}  Rc3 {[%clk 0:00:54]} 32. Rxb5 {[%clk 0:00:12]}  Rxe3 {[%clk 0:00:54]} 33. exf5 {[%clk 0:00:12]}  gxf5 {[%clk 0:00:52]} 34. f4 {[%clk 0:00:10]}  Nf6 {[%clk 0:00:50]} 35. Nc6 {[%clk 0:00:09]}  Re2 {[%clk 0:00:50]} 36. Nd4 {[%clk 0:00:04]}  Rd2 {[%clk 0:00:46]} 37. Nxf5 {[%clk 0:00:05]}  Nxd5 {[%clk 0:00:44]} 38. Rb7 {[%clk 0:00:02]}  Kf6 {[%clk 0:00:44]} 39. Nh4 {[%clk 0:00:01]}  Ne3 {[%clk 0:00:41]} 40. Nf3 {[%clk 0:00:01]}  Rf2 {[%clk 0:00:38]} 41. Ng5 {[%clk 0:00:02]}  d5 {[%clk 0:00:36]} 42. Nxh7+ {[%clk 0:00:02]}  Ke6 {[%clk 0:00:34]} 43. Ng5+ {[%clk 0:00:03]}  Kd6 {[%clk 0:00:34]} 44. Rb6+ {[%clk 0:00:03]}  Kc5 {[%clk 0:00:34]} 45. Re6 {[%clk 0:00:03]}  d4 {[%clk 0:00:31]} 46. Ne4+ {[%clk 0:00:04]}  Kd5 {[%clk 0:00:32]} 47. Re5+ {[%clk 0:00:04]}  Kc4 {[%clk 0:00:30]} 48. Nxf2 {[%clk 0:00:05]}  Nd5 {[%clk 0:00:28]} 49. Kg4 {[%clk 0:00:04]}  Nc3 {[%clk 0:00:28]} 50. h4 {[%clk 0:00:03]}  d3 {[%clk 0:00:29]} 51. Nxd3 {[%clk 0:00:04]}  Kxd3 {[%clk 0:00:29]} 52. Rxe7 {[%clk 0:00:04]}  Nd1 {[%clk 0:00:29]} 53. h5 {[%clk 0:00:05]}  Nf2+ {[%clk 0:00:28]} 54. Kg5 {[%clk 0:00:05]}  Kd4 {[%clk 0:00:29]} 55. h6 {[%clk 0:00:06]} 1-0


[Site "https://www.chess.com"]

[Event "Titled Tuesday Blitz October 5 2021"]
[White "Wagner, Dennis"]
[Black "Avila Pavas, Santiago"]
[WhiteFideId "24650684"]
[BlackFideId "4437128"]
[WhiteElo "2355"]
[BlackElo "2292"]
[Result "0-1"]
[Round "10"]
[TimeControl "180+1"]
[Date "2021.10.05"]
[WhiteClock "0:00:04"]
[BlackClock "0:01:59"]

1. d4 {[%clk 0:03:00]}  Nf6 {[%clk 0:03:00]} 2. c4 {[%clk 0:03:00]}  c5 {[%clk 0:03:00]} 3. e3 {[%clk 0:02:58]}  cxd4 {[%clk 0:02:57]} 4. exd4 {[%clk 0:02:59]}  d5 {[%clk 0:02:57]} 5. Nc3 {[%clk 0:02:58]}  Nc6 {[%clk 0:02:58]} 6. Nf3 {[%clk 0:02:54]}  e6 {[%clk 0:02:52]} 7. cxd5 {[%clk 0:02:50]}  Nxd5 {[%clk 0:02:51]} 8. Bd3 {[%clk 0:02:50]}  Be7 {[%clk 0:02:50]} 9. O-O {[%clk 0:02:49]}  O-O {[%clk 0:02:50]} 10. Re1 {[%clk 0:02:45]}  Nf6 {[%clk 0:02:35]} 11. Bg5 {[%clk 0:02:38]}  b6 {[%clk 0:02:35]} 12. Qd2 {[%clk 0:02:17]}  Bb7 {[%clk 0:02:32]} 13. a3 {[%clk 0:01:49]}  Nd5 {[%clk 0:02:09]} 14. Nxd5 {[%clk 0:01:40]}  Qxd5 {[%clk 0:02:10]} 15. Bxe7 {[%clk 0:01:26]}  Nxe7 {[%clk 0:02:10]} 16. Re5 {[%clk 0:00:50]}  Qd8 {[%clk 0:02:09]} 17. Bxh7+ {[%clk 0:00:14]}  Kxh7 {[%clk 0:02:07]} 18. Ng5+ {[%clk 0:00:12]}  Kg8 {[%clk 0:01:59]} 19. Qd3 {[%clk 0:00:12]}  Nf5 {[%clk 0:01:59]} 20. f4 {[%clk 0:00:04]}  Qxd4+ {[%clk 0:01:58]} 21. Qxd4 {[%clk 0:00:04]}  Nxd4 {[%clk 0:01:59]} 0-1


[Site "https://www.chess.com"]

[Event "Titled Tuesday Blitz October 5 2021"]
[White "Warmerdam, Max"]
[Black "Svane, Rasmus"]
[WhiteFideId "1048104"]
[BlackFideId "4657101"]
[WhiteElo "2537"]
[BlackElo "2643"]
[Result "1-0"]
[Round "10"]
[TimeControl "180+1"]
[Date "2021.10.05"]
[WhiteClock "0:00:20"]
[BlackClock "0:00:01"]

1. e4 {[%clk 0:03:00]}  c6 {[%clk 0:03:00]} 2. d4 {[%clk 0:03:00]}  d5 {[%clk 0:03:01]} 3. e5 {[%clk 0:03:01]}  Bf5 {[%clk 0:03:01]} 4. Nd2 {[%clk 0:03:01]}  e6 {[%clk 0:03:01]} 5. Nb3 {[%clk 0:03:02]}  Ne7 {[%clk 0:03:00]} 6. Nf3 {[%clk 0:03:03]}  Nd7 {[%clk 0:03:00]} 7. Be2 {[%clk 0:03:03]}  Ng6 {[%clk 0:03:01]} 8. O-O {[%clk 0:03:04]}  f6 {[%clk 0:03:01]} 9. Bd3 {[%clk 0:02:39]}  Bg4 {[%clk 0:02:51]} 10. h3 {[%clk 0:02:35]}  Bxf3 {[%clk 0:02:48]} 11. Qxf3 {[%clk 0:02:36]}  fxe5 {[%clk 0:02:48]} 12. Bxg6+ {[%clk 0:02:33]}  hxg6 {[%clk 0:02:47]} 13. Qg3 {[%clk 0:02:34]}  Kf7 {[%clk 0:02:06]} 14. dxe5 {[%clk 0:02:33]}  Qh4 {[%clk 0:02:06]} 15. Bf4 {[%clk 0:02:22]}  Be7 {[%clk 0:01:53]} 16. Qe3 {[%clk 0:02:20]}  Qh5 {[%clk 0:01:41]} 17. Bg3 {[%clk 0:02:19]}  Raf8 {[%clk 0:01:33]} 18. c4 {[%clk 0:02:16]}  Nb6 {[%clk 0:01:30]} 19. cxd5 {[%clk 0:02:07]}  Nxd5 {[%clk 0:01:00]} 20. Qxa7 {[%clk 0:02:08]}  b6 {[%clk 0:01:00]} 21. Nd4 {[%clk 0:02:04]}  Rc8 {[%clk 0:00:51]} 22. Qd7 {[%clk 0:01:46]}  Nc7 {[%clk 0:00:43]} 23. Nxc6 {[%clk 0:01:47]}  Nd5 {[%clk 0:00:42]} 24. Nd4 {[%clk 0:01:44]}  Nc7 {[%clk 0:00:43]} 25. Rac1 {[%clk 0:01:40]}  Rhd8 {[%clk 0:00:42]} 26. Qa4 {[%clk 0:01:38]}  Bc5 {[%clk 0:00:37]} 27. Nc6 {[%clk 0:01:35]}  Rd3 {[%clk 0:00:34]} 28. b4 {[%clk 0:01:34]}  Rxg3 {[%clk 0:00:15]} 29. bxc5 {[%clk 0:01:33]}  Rg5 {[%clk 0:00:11]} 30. f4 {[%clk 0:01:31]}  Rg3 {[%clk 0:00:09]} 31. cxb6 {[%clk 0:01:30]}  Nd5 {[%clk 0:00:04]} 32. Rf2 {[%clk 0:01:16]}  Qxh3 {[%clk 0:00:02]} 33. Qa7+ {[%clk 0:00:59]}  Kg8 {[%clk 0:00:02]} 34. b7 {[%clk 0:00:52]}  Rf8 {[%clk 0:00:01]} 35. b8=Q {[%clk 0:00:51]}  Rxb8 {[%clk 0:00:02]} 36. Qxb8+ {[%clk 0:00:45]}  Kh7 {[%clk 0:00:02]} 37. Qb2 {[%clk 0:00:32]}  Ne3 {[%clk 0:00:02]} 38. Nd4 {[%clk 0:00:26]}  Ng4 {[%clk 0:00:02]} 39. Nf3 {[%clk 0:00:27]}  Qh5 {[%clk 0:00:02]} 40. Rc7 {[%clk 0:00:21]}  Ne3 {[%clk 0:00:01]} 41. Ng5+ {[%clk 0:00:20]} 1-0


[Site "https://www.chess.com"]

[Event "Titled Tuesday Blitz October 5 2021"]
[White "ketster"]
[Black "Krivonosov, Oleg"]
[BlackFideId "11600349"]
[WhiteElo "2552"]
[BlackElo "2469"]
[Result "0-1"]
[Round "10"]
[TimeControl "180+1"]
[Date "2021.10.05"]
[WhiteClock "0:00:04"]
[BlackClock "0:00:11"]

1. d4 {[%clk 0:02:40]}  d5 {[%clk 0:02:58]} 2. c4 {[%clk 0:02:41]}  e6 {[%clk 0:02:58]} 3. Nf3 {[%clk 0:02:41]}  Nf6 {[%clk 0:02:57]} 4. g3 {[%clk 0:02:41]}  Be7 {[%clk 0:02:56]} 5. Bg2 {[%clk 0:02:42]}  O-O {[%clk 0:02:57]} 6. Qc2 {[%clk 0:02:42]}  Nbd7 {[%clk 0:02:57]} 7. O-O {[%clk 0:02:42]}  c6 {[%clk 0:02:57]} 8. Nbd2 {[%clk 0:02:39]}  b6 {[%clk 0:02:57]} 9. Rd1 {[%clk 0:02:36]}  Bb7 {[%clk 0:02:54]} 10. e4 {[%clk 0:02:35]}  Rc8 {[%clk 0:02:36]} 11. e5 {[%clk 0:02:23]}  Ne8 {[%clk 0:02:36]} 12. b3 {[%clk 0:02:11]}  Nc7 {[%clk 0:02:31]} 13. Bb2 {[%clk 0:02:06]}  h6 {[%clk 0:02:30]} 14. Rac1 {[%clk 0:01:56]}  c5 {[%clk 0:02:30]} 15. Qb1 {[%clk 0:01:47]}  cxd4 {[%clk 0:02:26]} 16. Bxd4 {[%clk 0:01:44]}  Bc5 {[%clk 0:02:22]} 17. Qb2 {[%clk 0:01:33]}  Qe7 {[%clk 0:02:21]} 18. Nb1 {[%clk 0:01:24]}  dxc4 {[%clk 0:02:12]} 19. Rxc4 {[%clk 0:01:18]}  Rfd8 {[%clk 0:02:06]} 20. b4 {[%clk 0:01:02]}  Bxd4 {[%clk 0:01:57]} 21. Rcxd4 {[%clk 0:01:02]}  Nf8 {[%clk 0:01:46]} 22. Nc3 {[%clk 0:00:58]}  Rxd4 {[%clk 0:01:42]} 23. Rxd4 {[%clk 0:00:55]}  Rd8 {[%clk 0:01:37]} 24. Qd2 {[%clk 0:00:49]}  Rxd4 {[%clk 0:01:34]} 25. Qxd4 {[%clk 0:00:49]}  Qd7 {[%clk 0:01:33]} 26. Qe3 {[%clk 0:00:17]}  Ng6 {[%clk 0:01:25]} 27. h4 {[%clk 0:00:17]}  Nd5 {[%clk 0:01:15]} 28. Nxd5 {[%clk 0:00:17]}  Bxd5 {[%clk 0:01:13]} 29. a3 {[%clk 0:00:15]}  Qc7 {[%clk 0:01:07]} 30. h5 {[%clk 0:00:16]}  Ne7 {[%clk 0:00:59]} 31. Nd4 {[%clk 0:00:16]}  Bxg2 {[%clk 0:00:55]} 32. Kxg2 {[%clk 0:00:17]}  Nd5 {[%clk 0:00:54]} 33. Qe4 {[%clk 0:00:14]}  a5 {[%clk 0:00:46]} 34. Nb5 {[%clk 0:00:14]}  Qc6 {[%clk 0:00:44]} 35. Nd6 {[%clk 0:00:12]}  f5 {[%clk 0:00:37]} 36. Qf3 {[%clk 0:00:10]}  axb4 {[%clk 0:00:35]} 37. axb4 {[%clk 0:00:10]}  Nxb4 {[%clk 0:00:34]} 38. Qxc6 {[%clk 0:00:10]}  Nxc6 {[%clk 0:00:35]} 39. f4 {[%clk 0:00:08]}  g6 {[%clk 0:00:29]} 40. hxg6 {[%clk 0:00:07]}  Kg7 {[%clk 0:00:29]} 41. Kf3 {[%clk 0:00:07]}  Kxg6 {[%clk 0:00:28]} 42. Nc4 {[%clk 0:00:06]}  b5 {[%clk 0:00:27]} 43. Nd2 {[%clk 0:00:06]}  b4 {[%clk 0:00:27]} 44. Nb3 {[%clk 0:00:06]}  Ne7 {[%clk 0:00:24]} 45. Nc5 {[%clk 0:00:06]}  Kf7 {[%clk 0:00:24]} 46. Ke3 {[%clk 0:00:06]}  Ng6 {[%clk 0:00:23]} 47. Kd3 {[%clk 0:00:06]}  h5 {[%clk 0:00:23]} 48. Kc4 {[%clk 0:00:07]}  h4 {[%clk 0:00:19]} 49. gxh4 {[%clk 0:00:07]}  Nxf4 {[%clk 0:00:20]} 50. Kxb4 {[%clk 0:00:07]}  Ng6 {[%clk 0:00:20]} 51. Nd3 {[%clk 0:00:06]}  Nxh4 {[%clk 0:00:19]} 52. Kc4 {[%clk 0:00:07]}  Kg6 {[%clk 0:00:19]} 53. Nc5 {[%clk 0:00:07]}  Kf7 {[%clk 0:00:18]} 54. Kd4 {[%clk 0:00:06]}  Nf3+ {[%clk 0:00:18]} 55. Ke3 {[%clk 0:00:07]}  Nxe5 {[%clk 0:00:18]} 56. Kf4 {[%clk 0:00:07]}  Kf6 {[%clk 0:00:17]} 57. Nb3 {[%clk 0:00:05]}  Ng6+ {[%clk 0:00:17]} 58. Kf3 {[%clk 0:00:05]}  e5 {[%clk 0:00:18]} 59. Nc5 {[%clk 0:00:06]}  Ne7 {[%clk 0:00:16]} 60. Nd7+ {[%clk 0:00:06]}  Ke6 {[%clk 0:00:16]} 61. Nc5+ {[%clk 0:00:05]}  Kd5 {[%clk 0:00:16]} 62. Nd7 {[%clk 0:00:06]}  Nc6 {[%clk 0:00:15]} 63. Nf6+ {[%clk 0:00:06]}  Ke6 {[%clk 0:00:15]} 64. Nh5 {[%clk 0:00:06]}  Nd4+ {[%clk 0:00:14]} 65. Ke3 {[%clk 0:00:06]}  Kf7 {[%clk 0:00:13]} 66. Kf2 {[%clk 0:00:04]}  f4 {[%clk 0:00:11]} 0-1


[Site "https://www.chess.com"]

[Event "Titled Tuesday Blitz October 5 2021"]
[White "Al-Tarboush, Ward"]
[Black "Cunha, Lucas Aguiar"]
[WhiteFideId "7601450"]
[BlackFideId "2125404"]
[WhiteElo "2296"]
[BlackElo "2361"]
[Result "0-1"]
[Round "11"]
[TimeControl "180+1"]
[Date "2021.10.05"]
[WhiteClock "0:00:01"]
[BlackClock "0:00:36"]

1. d4 {[%clk 0:03:00]}  Nf6 {[%clk 0:02:59]} 2. Nf3 {[%clk 0:03:00]}  c5 {[%clk 0:02:59]} 3. c3 {[%clk 0:02:59]}  d5 {[%clk 0:02:59]} 4. Nbd2 {[%clk 0:02:48]}  Nc6 {[%clk 0:02:57]} 5. dxc5 {[%clk 0:02:44]}  e5 {[%clk 0:02:57]} 6. b4 {[%clk 0:02:44]}  a5 {[%clk 0:02:51]} 7. b5 {[%clk 0:02:43]}  Na7 {[%clk 0:02:51]} 8. Nxe5 {[%clk 0:02:30]}  Bxc5 {[%clk 0:02:51]} 9. Nd3 {[%clk 0:02:28]}  Bd6 {[%clk 0:02:48]} 10. a4 {[%clk 0:02:21]}  O-O {[%clk 0:02:45]} 11. e3 {[%clk 0:02:20]}  Bf5 {[%clk 0:02:41]} 12. Be2 {[%clk 0:02:19]}  Nc8 {[%clk 0:02:38]} 13. O-O {[%clk 0:02:19]}  Qc7 {[%clk 0:02:38]} 14. Nf4 {[%clk 0:02:14]}  Qxc3 {[%clk 0:02:26]} 15. Nf3 {[%clk 0:02:14]}  Qxa1 {[%clk 0:02:18]} 16. Nd4 {[%clk 0:02:12]}  Bxf4 {[%clk 0:02:08]} 17. exf4 {[%clk 0:02:10]}  Nd6 {[%clk 0:02:03]} 18. Qd2 {[%clk 0:01:25]}  Nfe4 {[%clk 0:01:56]} 19. Qe3 {[%clk 0:01:21]}  Rfc8 {[%clk 0:01:45]} 20. Bd3 {[%clk 0:00:27]}  Re8 {[%clk 0:01:30]} 21. Nxf5 {[%clk 0:00:16]}  Nxf5 {[%clk 0:01:29]} 22. Qf3 {[%clk 0:00:11]}  Nd4 {[%clk 0:01:24]} 23. Qg4 {[%clk 0:00:08]}  Nf6 {[%clk 0:01:18]} 24. Qg3 {[%clk 0:00:08]}  Ne2+ {[%clk 0:01:14]} 25. Bxe2 {[%clk 0:00:07]}  Rxe2 {[%clk 0:01:15]} 26. h4 {[%clk 0:00:06]}  Rc8 {[%clk 0:01:10]} 27. Be3 {[%clk 0:00:06]}  Re1 {[%clk 0:01:09]} 28. Rxe1 {[%clk 0:00:06]}  Qxe1+ {[%clk 0:01:10]} 29. Kh2 {[%clk 0:00:07]}  Qd1 {[%clk 0:01:05]} 30. Qh3 {[%clk 0:00:06]}  Ng4+ {[%clk 0:01:02]} 31. Kg3 {[%clk 0:00:07]}  f5 {[%clk 0:01:01]} 32. h5 {[%clk 0:00:06]}  Rc3 {[%clk 0:00:57]} 33. Kh4 {[%clk 0:00:05]}  Qe1 {[%clk 0:00:55]} 34. g3 {[%clk 0:00:02]}  Rxe3 {[%clk 0:00:44]} 35. fxe3 {[%clk 0:00:01]}  Qxe3 {[%clk 0:00:44]} 36. Qf1 {[%clk 0:00:01]}  Nf2 {[%clk 0:00:36]} 0-1


[Site "https://www.chess.com"]

[Event "Titled Tuesday Blitz October 5 2021"]
[White "Avramidou, Anastasia"]
[Black "Skuhala, Barbara"]
[WhiteFideId "4239873"]
[BlackFideId "14605465"]
[WhiteElo "2183"]
[BlackElo "2121"]
[Result "1/2-1/2"]
[Round "11"]
[TimeControl "180+1"]
[Date "2021.10.05"]
[WhiteClock "0:01:45"]
[BlackClock "0:02:28"]

1. d4 {[%clk 0:02:56]}  Nf6 {[%clk 0:02:59]} 2. Nc3 {[%clk 0:02:56]}  d5 {[%clk 0:02:59]} 3. Bg5 {[%clk 0:02:55]}  e6 {[%clk 0:02:59]} 4. e4 {[%clk 0:02:54]}  dxe4 {[%clk 0:02:58]} 5. Nxe4 {[%clk 0:02:55]}  Be7 {[%clk 0:02:58]} 6. Bxf6 {[%clk 0:02:55]}  Bxf6 {[%clk 0:02:59]} 7. c3 {[%clk 0:02:55]}  O-O {[%clk 0:02:58]} 8. Nf3 {[%clk 0:02:56]}  b6 {[%clk 0:02:58]} 9. Bd3 {[%clk 0:02:56]}  Bb7 {[%clk 0:02:58]} 10. O-O {[%clk 0:02:57]}  Nd7 {[%clk 0:02:57]} 11. Qe2 {[%clk 0:02:57]}  Be7 {[%clk 0:02:55]} 12. Rad1 {[%clk 0:02:57]}  Nf6 {[%clk 0:02:54]} 13. Ne5 {[%clk 0:02:52]}  Nxe4 {[%clk 0:02:52]} 14. Bxe4 {[%clk 0:02:53]}  Bxe4 {[%clk 0:02:52]} 15. Qxe4 {[%clk 0:02:53]}  Bd6 {[%clk 0:02:51]} 16. Rfe1 {[%clk 0:02:51]}  Bxe5 {[%clk 0:02:49]} 17. dxe5 {[%clk 0:02:51]}  Qe7 {[%clk 0:02:49]} 18. Re2 {[%clk 0:02:47]}  Rad8 {[%clk 0:02:49]} 19. Red2 {[%clk 0:02:48]}  Rxd2 {[%clk 0:02:49]} 20. Rxd2 {[%clk 0:02:49]}  Rd8 {[%clk 0:02:49]} 21. Rd4 {[%clk 0:02:47]}  c5 {[%clk 0:02:47]} 22. Rd3 {[%clk 0:02:39]}  Rxd3 {[%clk 0:02:47]} 23. Qxd3 {[%clk 0:02:40]}  g6 {[%clk 0:02:46]} 24. f4 {[%clk 0:02:40]}  Kg7 {[%clk 0:02:43]} 25. g3 {[%clk 0:02:38]}  Qb7 {[%clk 0:02:43]} 26. h3 {[%clk 0:02:16]}  h5 {[%clk 0:02:42]} 27. Kh2 {[%clk 0:02:13]}  Qc6 {[%clk 0:02:39]} 28. g4 {[%clk 0:02:06]}  hxg4 {[%clk 0:02:38]} 29. hxg4 {[%clk 0:02:07]}  Qa4 {[%clk 0:02:37]} 30. Kg3 {[%clk 0:01:53]}  Qxa2 {[%clk 0:02:36]} 31. Qd8 {[%clk 0:01:44]}  Qxb2 {[%clk 0:02:30]} 32. Qf6+ {[%clk 0:01:44]}  Kg8 {[%clk 0:02:28]} 33. Qd8+ {[%clk 0:01:44]}  Kh7 {[%clk 0:02:29]} 34. Qh4+ {[%clk 0:01:44]}  Kg7 {[%clk 0:02:28]} 35. Qf6+ {[%clk 0:01:44]}  Kg8 {[%clk 0:02:28]} 36. Qd8+ {[%clk 0:01:45]}  Kg7 {[%clk 0:02:28]} 37. Qf6+ {[%clk 0:01:45]} 1/2-1/2


[Site "https://www.chess.com"]

[Event "Titled Tuesday Blitz October 5 2021"]
[White "Baskin, Robert"]
[Black "Maly, Alexey"]
[WhiteFideId "24662402"]
[BlackFideId "14103184"]
[WhiteElo "2521"]
[BlackElo "2294"]
[Result "1-0"]
[Round "11"]
[TimeControl "180+1"]
[Date "2021.10.05"]
[WhiteClock "0:00:14"]
[BlackClock "0:00:14"]

1. e4 {[%clk 0:03:00]}  c6 {[%clk 0:02:59]} 2. d4 {[%clk 0:03:00]}  d5 {[%clk 0:03:00]} 3. e5 {[%clk 0:03:00]}  Bf5 {[%clk 0:03:00]} 4. Nc3 {[%clk 0:02:54]}  e6 {[%clk 0:02:58]} 5. g4 {[%clk 0:02:54]}  Bg6 {[%clk 0:02:57]} 6. Nge2 {[%clk 0:02:54]}  c5 {[%clk 0:02:45]} 7. h4 {[%clk 0:02:36]}  cxd4 {[%clk 0:02:39]} 8. Nxd4 {[%clk 0:02:32]}  h5 {[%clk 0:02:36]} 9. Bb5+ {[%clk 0:02:26]}  Nd7 {[%clk 0:02:36]} 10. f4 {[%clk 0:02:26]}  hxg4 {[%clk 0:02:34]} 11. f5 {[%clk 0:02:06]}  Rxh4 {[%clk 0:02:31]} 12. Rf1 {[%clk 0:02:06]}  Rh2 {[%clk 0:02:02]} 13. Bxd7+ {[%clk 0:01:51]}  Kxd7 {[%clk 0:01:52]} 14. Qxg4 {[%clk 0:01:51]}  exf5 {[%clk 0:01:11]} 15. Nxf5 {[%clk 0:01:52]}  Bxf5 {[%clk 0:01:08]} 16. Qxf5+ {[%clk 0:01:52]}  Kc6 {[%clk 0:01:06]} 17. Bg5 {[%clk 0:01:53]}  Be7 {[%clk 0:01:03]} 18. Bxe7 {[%clk 0:01:53]}  Nxe7 {[%clk 0:00:54]} 19. Qxf7 {[%clk 0:01:38]}  Rxc2 {[%clk 0:00:51]} 20. Qe6+ {[%clk 0:01:22]}  Kc5 {[%clk 0:00:49]} 21. Rf4 {[%clk 0:00:48]}  d4 {[%clk 0:00:28]} 22. Ne4+ {[%clk 0:00:42]}  Kb5 {[%clk 0:00:22]} 23. Qb3+ {[%clk 0:00:41]}  Ka6 {[%clk 0:00:22]} 24. Qxc2 {[%clk 0:00:23]}  Nd5 {[%clk 0:00:23]} 25. Qa4+ {[%clk 0:00:22]}  Kb6 {[%clk 0:00:23]} 26. Rf3 {[%clk 0:00:19]}  Qh4+ {[%clk 0:00:22]} 27. Nf2 {[%clk 0:00:18]}  Ne3 {[%clk 0:00:19]} 28. Rxe3 {[%clk 0:00:15]}  a6 {[%clk 0:00:16]} 29. Rb3+ {[%clk 0:00:14]}  Ka7 {[%clk 0:00:17]} 30. O-O-O {[%clk 0:00:15]}  Qxf2 {[%clk 0:00:14]} 31. Qxd4+ {[%clk 0:00:14]} 1-0


[Site "https://www.chess.com"]

[Event "Titled Tuesday Blitz October 5 2021"]
[White "Berezin, Viktor"]
[Black "Gimenez Aguirre, Alejo Ismael"]
[WhiteFideId "14107872"]
[BlackFideId "32041667"]
[WhiteElo "2310"]
[BlackElo "2031"]
[Result "0-1"]
[Round "11"]
[TimeControl "180+1"]
[Date "2021.10.05"]
[WhiteClock "0:00:02"]
[BlackClock "0:00:08"]

1. d4 {[%clk 0:03:00]}  Nf6 {[%clk 0:02:58]} 2. Nf3 {[%clk 0:03:00]}  e6 {[%clk 0:02:58]} 3. g3 {[%clk 0:03:01]}  b5 {[%clk 0:02:57]} 4. Bg2 {[%clk 0:03:00]}  Bb7 {[%clk 0:02:57]} 5. O-O {[%clk 0:03:01]}  c5 {[%clk 0:02:57]} 6. a4 {[%clk 0:03:01]}  b4 {[%clk 0:02:56]} 7. c3 {[%clk 0:03:01]}  a5 {[%clk 0:02:56]} 8. Bg5 {[%clk 0:03:00]}  Be7 {[%clk 0:02:55]} 9. Nbd2 {[%clk 0:03:00]}  h6 {[%clk 0:02:54]} 10. Bxf6 {[%clk 0:03:00]}  gxf6 {[%clk 0:02:53]} 11. e4 {[%clk 0:02:58]}  d5 {[%clk 0:02:52]} 12. dxc5 {[%clk 0:02:49]}  Bxc5 {[%clk 0:02:50]} 13. Nb3 {[%clk 0:02:44]}  Be7 {[%clk 0:02:44]} 14. exd5 {[%clk 0:02:42]}  Bxd5 {[%clk 0:02:41]} 15. Nfd4 {[%clk 0:02:37]}  h5 {[%clk 0:02:30]} 16. c4 {[%clk 0:02:30]}  Bxg2 {[%clk 0:02:27]} 17. Kxg2 {[%clk 0:02:31]}  Nd7 {[%clk 0:02:19]} 18. Qf3 {[%clk 0:02:03]}  Ne5 {[%clk 0:02:16]} 19. Qe2 {[%clk 0:02:03]}  Qc7 {[%clk 0:02:13]} 20. f4 {[%clk 0:01:53]}  Qb7+ {[%clk 0:02:11]} 21. Kg1 {[%clk 0:01:51]}  Nd7 {[%clk 0:02:07]} 22. Nb5 {[%clk 0:01:40]}  h4 {[%clk 0:02:03]} 23. Qg2 {[%clk 0:01:34]}  Qb6+ {[%clk 0:01:59]} 24. Qf2 {[%clk 0:01:33]}  Qb8 {[%clk 0:01:55]} 25. g4 {[%clk 0:01:27]}  h3 {[%clk 0:01:52]} 26. Rad1 {[%clk 0:01:23]}  Rg8 {[%clk 0:01:45]} 27. Qf3 {[%clk 0:01:22]}  Qb6+ {[%clk 0:01:32]} 28. Kh1 {[%clk 0:01:07]}  Rc8 {[%clk 0:01:32]} 29. Rd4 {[%clk 0:01:02]}  e5 {[%clk 0:01:27]} 30. Re4 {[%clk 0:00:42]}  exf4 {[%clk 0:00:48]} 31. c5 {[%clk 0:00:20]}  Nxc5 {[%clk 0:00:44]} 32. Nxc5 {[%clk 0:00:15]}  Rxc5 {[%clk 0:00:42]} 33. Rfe1 {[%clk 0:00:15]}  Re5 {[%clk 0:00:37]} 34. Rxe5 {[%clk 0:00:14]}  fxe5 {[%clk 0:00:38]} 35. Rxe5 {[%clk 0:00:15]}  Qb8 {[%clk 0:00:28]} 36. Qe4 {[%clk 0:00:12]}  Qd8 {[%clk 0:00:24]} 37. Qe2 {[%clk 0:00:05]}  Kf8 {[%clk 0:00:19]} 38. Re4 {[%clk 0:00:02]}  Qd7 {[%clk 0:00:14]} 39. Nd4 {[%clk 0:00:02]}  Rxg4 {[%clk 0:00:13]} 40. Nf3 {[%clk 0:00:03]}  Rg2 {[%clk 0:00:11]} 41. Qe1 {[%clk 0:00:02]}  Bc5 {[%clk 0:00:11]} 42. Ne5 {[%clk 0:00:02]}  Qf5 {[%clk 0:00:07]} 43. Qh4 {[%clk 0:00:02]}  Rg1# {[%clk 0:00:08]} 0-1


[Site "https://www.chess.com"]